bitfinex-derivatives/quotes_SOLF0:USTF0_20260217
["timestamp","ask_amount","ask_price","bid_price","bid_amount"]
[1771331243426,3.60501487,85.23,85.196,9.31223839]
[1771331243427,10.5662,85.224,85.196,9.31223839]
[1771331243825,3.60501487,85.24,85.196,9.31223839]
[1771331245832,10.5654,85.231,85.197,9.33437061]
[1771331246328,10.5646,85.237,85.199,10.5692]
[1771331246534,10.5646,85.237,85.2,9.33437061]
[1771331247037,3.60501487,85.25,85.203,9.33424259]
[1771331248741,10.5639,85.243,85.205,9.34294845]
[1771331249134,3.60501487,85.24,85.191,9.34294845]
[1771331250840,10.5647,85.236,85.193,9.34669531]
[1771331251441,10.5654,85.231,85.193,9.34669531]
[1771331258350,10.5654,85.231,85.195,9.36892982]
[1771331263853,3.60501487,85.26,85.201,9.35859236]
[1771331264048,8.75841099,85.259,85.201,9.35859236]
[1771331264254,8.75841099,85.258,85.201,9.35859236]
[1771331264453,8.75841099,85.257,85.201,9.35859236]
[1771331264656,10.5641,85.241,85.202,10.5688]
[1771331264856,73.92,85.276,85.203,9.35886744]
[1771331264857,3.60501487,85.27,85.203,9.35886744]
[1771331265054,8.75841966,85.269,85.21,3.60501487]
[1771331265355,8.75841966,85.268,85.211,9.35886744]
[1771331265557,8.75841966,85.267,85.211,9.35886744]
[1771331265756,10.563,85.25,85.212,9.35184981]
[1771331270664,10.563,85.25,85.214,9.35056909]
[1771331270860,3.60501487,85.27,85.214,9.35056909]
[1771331271062,8.76364982,85.269,85.221,9.3504706]
[1771331271359,3.60501487,85.28,85.223,9.3504706]
[1771331271563,10.5604,85.271,85.231,9.34707829]
[1771331272264,10.5612,85.265,85.231,9.34707829]
[1771331273261,10.5601,85.273,85.233,9.34699093]
[1771331274464,10.5601,85.273,85.232,10.5652]
[1771331274765,3.60501487,85.27,85.232,10.5652]
[1771331274965,10.5607,85.269,85.232,10.5652]
[1771331275562,10.5607,85.269,85.233,9.38772822]
[1771331276561,10.5598,85.276,85.235,9.38764704]
[1771331277663,10.5598,85.276,85.237,9.38822139]
[1771331278762,10.5598,85.276,85.239,9.38814265]
[1771331279870,10.5605,85.27,85.239,9.38814265]
[1771331282274,10.5613,85.263,85.226,9.37068398]
[1771331282572,3.60501487,85.26,85.226,9.37068398]
[1771331283672,10.5625,85.254,85.226,9.37068398]
[1771331284773,10.5625,85.254,85.214,9.35700477]
[1771331287968,10.5625,85.254,85.213,73.9]
[1771331287969,10.5625,85.254,85.216,9.40687854]
[1771331290374,10.5632,85.248,85.216,9.40687854]
[1771331293980,10.5618,85.26,85.221,9.54480121]
[1771331294279,35.26,85.322,85.191,21.1403]
[1771331294280,3.60361796,85.29,85.231,9.54480121]
[1771331294481,8.7268677,85.289,85.231,9.54480121]
[1771331294675,8.7268677,85.288,85.231,9.54480121]
[1771331294875,8.7268677,85.287,85.231,9.54480121]
[1771331295076,3.60361796,85.29,85.231,9.54480121]
[1771331295682,10.5606,85.269,85.233,9.41990076]
[1771331296079,8.72549504,85.288,85.24,3.60361796]
[1771331296285,3.60361796,85.3,85.241,9.41990076]
[1771331296491,8.7247529,85.299,85.241,9.41990076]
[1771331296787,8.7247529,85.298,85.241,9.41990076]
[1771331296986,8.72411965,85.297,85.241,9.41990076]
[1771331297176,3.60361796,85.3,85.241,9.41990076]
[1771331297381,8.72267782,85.299,85.241,9.41990076]
[1771331297583,8.72267782,85.298,85.241,9.41990076]
[1771331297783,10.5588,85.284,85.243,9.45069468]
[1771331310285,10.5594,85.279,85.243,9.45069468]
[1771331313393,10.5586,85.285,85.245,9.36337078]
[1771331314002,10.5594,85.279,85.245,9.36337078]
[1771331317292,10.5586,85.285,85.248,9.32407166]
[1771331318800,10.5586,85.285,85.25,10.5629]
[1771331319206,10.5586,85.285,85.251,9.31451846]
[1771331319404,10.5572,85.297,85.259,9.31451846]
[1771331321108,10.5572,85.297,85.26,19.8818918]
[1771331321408,10.5572,85.297,85.261,9.3202918]
[1771331321605,10.5574,85.295,85.263,9.3202918]
[1771331323405,259.66723106,85.309,85.263,9.3202918]
[1771331323605,3.60361796,85.32,85.263,9.3202918]
[1771331323805,8.71504267,85.319,85.27,9.31421221]
[1771331324006,8.71504267,85.318,85.27,9.31421221]
[1771331324203,10.5553,85.313,85.27,9.31421221]
[1771331325110,10.5566,85.302,85.261,10.5615]
[1771331325707,10.5566,85.302,85.261,19.87622395]
[1771331326010,10.5566,85.302,85.262,9.31472395]
[1771331327316,73.88,85.328,85.251,73.88]
[1771331327317,10.5578,85.292,85.252,9.31468071]
[1771331328009,10.5591,85.281,85.242,9.33846159]
[1771331328208,3.60361796,85.29,85.242,9.33846159]
[1771331328806,10.5591,85.281,85.245,9.33841986]
[1771331329207,3.60361796,85.29,85.245,9.33841986]
[1771331330812,10.559,85.283,85.245,9.33841986]
[1771331331515,3.60361796,85.29,85.246,10.5633]
[1771331331708,10.5581,85.29,85.247,9.22633106]
[1771331332810,10.5581,85.29,85.252,9.22628399]
[1771331333010,10.5587,85.285,85.252,9.22628399]
[1771331333611,3.60361796,85.29,85.252,9.22628399]
[1771331335511,10.5579,85.291,85.252,9.22628399]
[1771331336617,10.93935408,85.331,85.228,73.86]
[1771331336618,3.60361796,85.31,85.255,9.24027093]
[1771331336813,8.72387676,85.309,85.255,9.24027093]
[1771331337014,3.60361796,85.31,85.255,9.24027093]
[1771331337813,10.5562,85.305,85.266,19.80101221]
[1771331339119,10.5562,85.305,85.269,9.24007542]
[1771331342219,3.60361796,85.33,85.271,9.23848493]
[1771331342418,8.72555555,85.329,85.271,9.23848493]
[1771331342613,8.72555555,85.329,85.281,9.23844393]
[1771331343018,19.27895555,85.328,85.284,9.23844393]
[1771331343311,8.72555555,85.327,85.284,9.23844393]
[1771331343518,10.5534,85.328,85.284,9.23844393]
[1771331343715,8.71920476,85.327,85.284,9.23844393]
[1771331343920,10.5534,85.328,85.284,9.23844393]
[1771331344120,8.71920476,85.327,85.284,9.23844393]
[1771331344317,10.5538,85.324,85.288,9.22758373]
[1771331346824,10.5528,85.332,85.288,9.22758373]
[1771331348621,3.60361796,85.34,85.28,3.60361796]
[1771331348622,3.60361796,85.34,85.292,9.30140611]
[1771331348817,3.60361796,85.35,85.292,9.30140611]
[1771331349121,8.70604628,85.349,85.292,9.30140611]
[1771331349623,3.60361796,85.35,85.292,9.30140611]
[1771331349624,8.70604628,85.348,85.292,9.30140611]
[1771331349918,8.70604628,85.348,85.29,3.60361796]
[1771331349919,8.70604628,85.347,85.296,9.30008601]
[1771331350120,3.60361796,85.36,85.301,9.30008601]
[1771331350318,8.70213147,85.359,85.301,9.30008601]
[1771331350523,8.70213147,85.358,85.301,9.30008601]
[1771331350821,8.70213147,85.357,85.301,9.30008601]
[1771331351021,8.70213147,85.356,85.301,9.30008601]
[1771331351224,3.60361796,85.35,85.301,9.30008601]
[1771331352620,3.60361796,85.35,85.299,10.5568]
[1771331352621,10.5505,85.351,85.305,9.30119445]
[1771331352826,3.60361796,85.35,85.305,9.30119445]
[1771331353718,10.5507,85.349,85.305,9.30119445]
[1771331356122,8.68251847,85.376,85.321,9.30395562]
[1771331356322,3.59624876,85.38,85.321,9.30395562]
[1771331356524,8.67893144,85.379,85.321,9.30395562]
[1771331356828,3.59624876,85.38,85.321,9.30395562]
[1771331357729,10.5486,85.366,85.325,9.28684152]
[1771331362025,3.59624876,85.38,85.328,9.29626809]
[1771331362026,10.5478,85.373,85.328,9.29626809]
[1771331362327,3.59624876,85.38,85.328,9.29626809]
[1771331363833,3.59624876,85.38,85.33,9.17754104]
[1771331363834,10.5485,85.367,85.33,9.17754104]
[1771331364230,8.65720255,85.393,85.338,9.17754104]
[1771331364442,21.0874,85.406,85.338,9.17754104]
[1771331364443,3.59624876,85.38,85.338,9.17754104]
[1771331364634,3.59624876,85.37,85.321,9.17772464]
[1771331365432,10.5483,85.368,85.323,9.17772464]
[1771331366037,10.5491,85.363,85.325,9.16722464]
[1771331367034,10.5497,85.357,85.325,9.16722464]
[1771331369232,73.82,85.389,85.315,9.17960712]
[1771331369433,3.59624876,85.37,85.315,9.17960712]
[1771331369739,10.55,85.355,85.323,9.16960373]
[1771331370437,10.5506,85.35,85.301,9.16960373]
[1771331371342,10.5514,85.344,85.311,9.16977641]
[1771331371939,10.5506,85.351,85.311,9.16977641]
[1771331373041,10.5511,85.346,85.311,9.16977641]
[1771331374636,3.59624876,85.33,85.295,10.5573]
[1771331375545,3.59624876,85.32,85.289,9.11686451]
[1771331376136,3.59624876,85.32,85.288,9.12263724]
[1771331376340,10.5545,85.319,85.278,10.5595]
[1771331376533,10.5545,85.319,85.279,9.12263724]
[1771331377742,10.5545,85.319,85.282,8.83742252]
[1771331380147,3.59624876,85.31,85.274,10.5599]
[1771331380353,10.5545,85.319,85.274,19.41674923]
[1771331380644,10.5545,85.319,85.275,8.85703255]
[1771331381347,10.5545,85.319,85.276,19.41663255]
[1771331381544,10.5545,85.319,85.277,8.85703255]
[1771331382648,73.82,85.35,85.269,10.5606]
[1771331382649,3.59624876,85.31,85.269,10.5606]
[1771331383152,3.59624876,85.29,85.251,8.86107376]
[1771331384749,3.59624876,85.29,85.253,8.8787998]
[1771331385649,3.59624876,85.29,85.255,10.5622]
[1771331385952,3.59624876,85.29,85.255,19.40793927]
[1771331386747,3.59624876,85.29,85.256,8.84590813]
[1771331387351,10.5581,85.289,85.256,8.84590813]
[1771331387858,3.59624876,85.29,85.256,8.84590813]
[1771331389958,10.5583,85.288,85.256,8.84590813]
[1771331390266,3.59624876,85.3,85.256,8.84590813]
[1771331390766,14.15304876,85.3,85.26,10.5616]
[1771331391069,14.15304876,85.3,85.24,3.59624876]
[1771331391070,3.59624876,85.3,85.261,8.85826668]
[1771331392564,3.59624876,85.29,85.261,8.85826668]
[1771331395477,3.59624876,85.3,85.263,8.86815242]
[1771331395666,3.59624876,85.31,85.263,8.86815242]
[1771331396370,10.5569,85.299,85.263,8.86815242]
[1771331396763,3.59624876,85.31,85.263,8.86815242]
[1771331397664,10.5561,85.306,85.263,8.86815242]
[1771331398065,3.59624876,85.3,85.263,8.86815242]
[1771331398770,3.59624876,85.3,85.265,8.82240278]
[1771331399165,3.59624876,85.31,85.265,8.82240278]
[1771331400769,10.5557,85.309,85.267,8.79621991]
[1771331401067,3.59624876,85.33,85.271,8.79621991]
[1771331401273,3.59624876,85.34,85.281,8.79621991]
[1771331402473,3.59624876,85.33,85.281,8.79621991]
[1771331402668,10.5536,85.326,85.283,10.5588]
[1771331402874,10.5536,85.326,85.284,8.81506987]
[1771331403469,10.5536,85.326,85.286,8.81506987]
[1771331404671,10.5543,85.32,85.286,8.81506987]
[1771331404874,14.15054876,85.32,85.286,8.81506987]
[1771331405374,10.5552,85.313,85.275,8.81616859]
[1771331406175,3.59624876,85.31,85.275,8.81616859]
[1771331406972,3.59624876,85.31,85.275,19.37596859]
[1771331407167,14.15064876,85.32,85.276,8.79487864]
[1771331410168,14.15064876,85.32,85.26,3.59624876]
[1771331410169,3.59624876,85.31,85.264,8.65679394]
[1771331410569,3.59624876,85.3,85.264,8.65679394]
[1771331411069,3.59624876,85.31,85.264,8.65679394]
[1771331411373,10.5562,85.305,85.264,8.65679394]
[1771331411973,3.59624876,85.3,85.264,8.65679394]
[1771331412771,10.5573,85.296,85.264,8.65679394]
[1771331412967,3.59624876,85.29,85.252,8.67165869]
[1771331413674,3.59624876,85.29,85.254,8.67165869]
[1771331414375,10.5584,85.287,85.254,8.67165869]
[1771331416376,3.60161373,85.3,85.254,8.67165869]
[1771331416577,3.60161373,85.32,85.261,8.64387768]
[1771331417780,10.5553,85.312,85.269,8.62225074]
[1771331419879,10.5561,85.305,85.269,8.62225074]
[1771331422478,10.5553,85.312,85.271,8.61697831]
[1771331424886,10.556,85.307,85.271,8.61697831]
[1771331425887,10.5567,85.301,85.271,8.61697831]
[1771331426084,3.60161373,85.32,85.271,8.61697831]
[1771331427290,10.5551,85.314,85.273,8.66996695]
[1771331428492,10.5551,85.314,85.276,8.66129971]
[1771331429787,10.557,85.298,85.26,8.63501098]
[1771331431787,10.557,85.298,85.261,10.5615]
[1771331432296,10.5577,85.293,85.26,8.63501098]
[1771331432483,3.60161373,85.29,85.244,8.64405439]
[1771331432888,10.5588,85.284,85.244,8.64405439]
[1771331433191,3.60161373,85.29,85.244,8.64405439]
[1771331433392,3.60161373,85.28,85.223,8.64496229]
[1771331433595,3.60161373,85.27,85.223,8.64496229]
[1771331433794,3.60161373,85.27,85.229,8.61087235]
[1771331434595,3.60161373,85.28,85.231,8.61087235]
[1771331434795,8.75885064,85.279,85.231,8.61087235]
[1771331434995,8.75885064,85.278,85.231,8.61087235]
[1771331435196,3.60161373,85.28,85.235,8.61178403]
[1771331435394,10.95016325,85.304,85.235,8.61178403]
[1771331435595,3.60161373,85.3,85.241,8.61178403]
[1771331435899,10.5572,85.297,85.25,3.60161373]
[1771331436101,10.5572,85.297,85.244,8.60363675]
[1771331436693,10.5579,85.291,85.244,8.60363675]
[1771331437089,10.95016325,85.324,85.25,3.60161373]
[1771331437296,73.86,85.327,85.222,73.86]
[1771331437297,10.5555,85.311,85.262,8.60450856]
[1771331437501,3.60161373,85.31,85.262,8.60450856]
[1771331438604,10.5559,85.307,85.262,8.60450856]
[1771331442711,3.60161373,85.31,85.266,8.52635749]
[1771331443106,10.5549,85.316,85.266,8.52635749]
[1771331443307,10.5556,85.31,85.269,10.5605]
[1771331443613,10.5556,85.31,85.269,19.08685749]
[1771331444715,10.5556,85.31,85.27,8.52869003]
[1771331448114,14.15721373,85.31,85.27,8.52869003]
[1771331450419,8.75982271,85.309,85.27,8.52869003]
[1771331450611,8.75982271,85.308,85.27,8.52869003]
[1771331450810,14.15721373,85.31,85.27,8.52869003]
[1771331451014,8.75982271,85.309,85.27,8.52869003]
[1771331451215,14.15721373,85.31,85.27,8.52869003]
[1771331451216,8.75982271,85.308,85.27,8.52869003]
[1771331451414,10.5556,85.31,85.27,8.52869003]
[1771331451617,8.76020587,85.309,85.27,8.52869003]
[1771331451816,8.76020587,85.308,85.27,8.52869003]
[1771331452113,10.5556,85.31,85.27,8.52869003]
[1771331452315,10.5559,85.307,85.27,8.52869003]
[1771331456518,10.5571,85.298,85.26,3.60161373]
[1771331456723,10.5571,85.298,85.26,8.56253609]
[1771331458922,10.5571,85.298,85.261,8.4330232]
[1771331460323,10.5561,85.305,85.266,8.40636669]
[1771331460721,10.5561,85.305,85.228,21.7775496]
[1771331460722,10.5538,85.324,85.281,8.40710318]
[1771331460923,8.76145318,85.323,85.281,8.40710318]
[1771331461124,3.60161373,85.34,85.281,8.40710318]
[1771331461323,14.15341373,85.34,85.295,8.40710318]
[1771331461622,10.5518,85.34,85.295,8.40710318]
[1771331462017,14.15341373,85.34,85.295,8.40710318]
[1771331463821,14.15341373,85.34,85.297,8.48331547]
[1771331464528,10.551,85.347,85.303,8.48331547]
[1771331466030,3.60161373,85.34,85.303,8.48331547]
[1771331467817,247.2597576,85.361,85.262,8.48541141]
[1771331467818,3.60161373,85.32,85.262,8.48541141]
[1771331468031,247.2597576,85.361,85.25,8.48541141]
[1771331468032,3.60161373,85.29,85.25,8.48541141]
[1771331469731,3.60161373,85.29,85.257,10.562]
[1771331472537,3.60161373,85.28,85.241,10.564]
[1771331472728,3.60161373,85.28,85.241,19.01588859]
[1771331473234,3.60161373,85.28,85.244,8.45188859]
[1771331475828,3.60161373,85.28,85.246,19.01457048]
[1771331476042,3.60161373,85.28,85.247,8.45127048]
[1771331476228,3.60161373,85.29,85.247,8.45127048]
[1771331477133,10.5569,85.299,85.25,8.45187334]
[1771331477337,3.60161373,85.3,85.25,8.45187334]
[1771331477537,3.60161373,85.29,85.25,8.45187334]
[1771331478034,3.60164624,85.29,85.25,8.45187334]
[1771331479035,3.60164624,85.3,85.25,8.45187334]
[1771331480134,10.5582,85.289,85.25,8.45187334]
[1771331480333,10.5582,85.289,85.203,21.1375]
[1771331480334,3.60164624,85.28,85.231,8.46155011]
[1771331481740,10.5594,85.279,85.236,8.43690169]
[1771331483237,10.5594,85.279,85.24,8.43745424]
[1771331484835,10.5602,85.273,85.24,8.43745424]
[1771331486446,14.16094624,85.28,85.24,8.43745424]
[1771331489652,3.60164624,85.27,85.229,8.46584012]
[1771331490447,3.60164624,85.28,85.229,8.46584012]
[1771331490852,10.5604,85.271,85.231,8.46633878]
[1771331493046,10.5608,85.268,85.231,8.46633878]
[1771331495347,10.5616,85.262,85.231,8.46633878]
[1771331496349,10.5622,85.257,85.231,8.46633878]
[1771331497155,10.5613,85.263,85.231,8.46633878]
[1771331500256,3.60164624,85.26,85.231,8.46633878]
[1771331502663,10.5623,85.256,85.22,8.5098665]
[1771331504267,10.5629,85.251,85.22,8.5098665]
[1771331505164,10.5621,85.257,85.22,8.5098665]
[1771331507164,3.60164624,85.27,85.22,8.5098665]
[1771331507368,3.60164624,85.24,85.197,8.42945885]
[1771331507569,10.5649,85.235,85.197,8.42945885]
[1771331508873,3.60164624,85.24,85.197,8.42945885]
[1771331509076,3.60164624,85.23,85.197,8.42945885]
[1771331509873,10.5661,85.225,85.186,8.26441511]
[1771331510071,3.60164624,85.22,85.167,73.9]
[1771331510275,3.60164624,85.22,85.168,8.26441511]
[1771331510782,3.60164624,85.23,85.181,8.2648443]
[1771331510973,3.60164624,85.25,85.191,8.2648443]
[1771331511883,10.5633,85.247,85.202,8.24384055]
[1771331512181,3.60164624,85.26,85.202,8.24384055]
[1771331512680,3.60164624,85.25,85.202,8.24384055]
[1771331512882,3.60164624,85.24,85.202,8.24384055]
[1771331513082,3.60164624,85.24,85.186,8.2442705]
[1771331514785,10.5656,85.229,85.186,8.2442705]
[1771331519282,10.5656,85.229,85.156,2.04216364]
[1771331519283,10.5648,85.236,85.191,8.30420985]
[1771331519488,10.5648,85.236,85.201,8.30420985]
[1771331520983,10.5636,85.245,85.201,8.30420985]
[1771331521179,10.5636,85.245,85.211,8.29332266]
[1771331522283,10.5643,85.239,85.211,8.29332266]
[1771331526288,10.5635,85.246,85.211,8.29332266]
[1771331528392,10.5635,85.246,85.201,8.28865978]
[1771331529692,10.5635,85.246,85.203,8.30191095]
[1771331530387,10.5635,85.246,85.206,8.30191095]
[1771331531389,10.5627,85.253,85.209,18.87025443]
[1771331532988,3.60164624,85.25,85.209,18.87025443]
[1771331533494,3.60164624,85.25,85.203,10.5687]
[1771331533689,3.60164624,85.25,85.203,18.86367086]
[1771331533882,3.60164624,85.25,85.204,8.29497086]
[1771331534692,10.5639,85.243,85.204,8.29497086]
[1771331538396,10.5645,85.238,85.204,8.29497086]
[1771331540596,10.5652,85.232,85.204,8.29497086]
[1771331541499,10.5645,85.238,85.204,8.29497086]
[1771331546302,10.5645,85.238,85.2,10.5691]
[1771331546303,3.60500961,85.21,85.157,8.36609176]
[1771331547103,3.60500961,85.21,85.177,8.36636114]
[1771331547401,3.60500961,85.23,85.177,8.36636114]
[1771331547600,8.76640452,85.229,85.177,8.36636114]
[1771331547801,8.76640452,85.228,85.177,8.36636114]
[1771331547999,8.76640452,85.227,85.177,8.36636114]
[1771331548193,3.60500961,85.23,85.177,8.36636114]
[1771331548194,8.76640452,85.226,85.177,8.36636114]
[1771331548503,8.76640452,85.225,85.177,8.36636114]
[1771331548705,8.76640452,85.224,85.186,8.45892515]
[1771331548996,8.76640452,85.223,85.186,8.45892515]
[1771331549202,10.5656,85.229,85.186,8.45892515]
[1771331549605,8.76266587,85.228,85.186,8.45892515]
[1771331549804,8.76266587,85.227,85.186,8.45892515]
[1771331550103,8.76266587,85.226,85.186,8.45892515]
[1771331550303,8.76266587,85.225,85.186,8.45892515]
[1771331550504,10.5656,85.229,85.186,8.45892515]
[1771331550700,8.7614325,85.228,85.186,8.45892515]
[1771331551003,8.7614325,85.227,85.186,8.45892515]
[1771331551197,3.60500961,85.22,85.186,8.45892515]
[1771331551401,3.60500961,85.22,85.187,10.5707]
[1771331551603,3.60500961,85.22,85.187,19.02263282]
[1771331552305,3.60500961,85.22,85.187,8.45193282]
[1771331554007,10.5663,85.223,85.187,8.45193282]
[1771331554204,14.17050961,85.23,85.187,8.45193282]
[1771331554403,10.95668173,85.256,85.187,8.45193282]
[1771331554404,3.60500961,85.24,85.187,8.45193282]
[1771331555098,10.5645,85.238,85.194,8.4569933]
[1771331556208,10.5636,85.245,85.197,8.45367424]
[1771331557001,10.5643,85.239,85.199,8.45390889]
[1771331557206,10.5643,85.239,85.201,8.45390889]
[1771331558609,10.5658,85.228,85.184,8.46021838]
[1771331559111,3.60500961,85.24,85.184,8.46021838]
[1771331560808,10.5664,85.222,85.184,8.46021838]
[1771331561607,73.9,85.247,85.184,8.46021838]
[1771331561608,10.5648,85.236,85.193,10.5699]
[1771331561811,73.9,85.247,85.194,8.53090081]
[1771331561812,3.60500961,85.24,85.194,8.53090081]
[1771331562112,8.76166343,85.239,85.194,8.53090081]
[1771331562308,3.60500961,85.24,85.194,8.53090081]
[1771331562708,3.60500961,85.24,85.166,73.9]
[1771331562709,10.5663,85.223,85.182,8.5311086]
[1771331563414,3.60500961,85.23,85.184,8.5311086]
[1771331563911,3.60500961,85.23,85.186,8.52923107]
[1771331564713,3.60500961,85.23,85.19,8.52959494]
[1771331565310,3.60500961,85.23,85.191,10.5702]
[1771331565513,3.60500961,85.23,85.192,8.52959494]
[1771331565715,73.9,85.247,85.192,8.52959494]
[1771331565914,8.76083525,85.246,85.192,8.52959494]
[1771331566117,8.76083525,85.245,85.192,8.52959494]
[1771331566312,8.76083525,85.244,85.192,8.52959494]
[1771331566516,73.9,85.247,85.192,8.52959494]
[1771331566716,10.5637,85.244,85.202,8.49888704]
[1771331566913,3.60500961,85.27,85.202,8.49888704]
[1771331567118,8.75936493,85.269,85.211,8.49888704]
[1771331567418,8.75936493,85.268,85.211,8.49888704]
[1771331567613,8.75936493,85.267,85.211,8.49888704]
[1771331567818,8.75936493,85.266,85.211,8.49888704]
[1771331568121,8.75936493,85.265,85.211,8.49888704]
[1771331568620,10.5608,85.267,85.226,8.49531385]
[1771331568822,8.75968337,85.266,85.226,8.49531385]
[1771331569120,8.75968337,85.265,85.226,8.49531385]
[1771331569318,10.5608,85.267,85.226,8.49531385]
[1771331569518,10.5611,85.265,85.226,8.49531385]
[1771331572127,10.5619,85.259,85.226,8.49531385]
[1771331573222,10.5611,85.266,85.226,8.49531385]
[1771331574530,10.5611,85.266,85.228,8.51960131]
[1771331575828,10.5611,85.266,85.23,10.5654]
[1771331576127,73.9,85.28,85.195,73.9]
[1771331576128,10.56,85.274,85.231,8.52021121]
[1771331576425,10.56,85.274,85.22,3.60500961]
[1771331576426,10.56,85.274,85.234,8.52021121]
[1771331577923,10.56,85.274,85.236,10.5647]
[1771331578122,3.60500961,85.27,85.236,10.5647]
[1771331579029,73.9,85.278,85.239,8.52828845]
[1771331579221,3.60500961,85.28,85.239,8.52828845]
[1771331579615,73.9,85.285,85.255,8.52828845]
[1771331579816,246.89205284,85.299,85.255,8.52828845]
[1771331580118,73.9,85.298,85.255,8.52828845]
[1771331580321,3.60500961,85.29,85.255,8.52828845]
[1771331580719,3.60500961,85.29,85.231,8.52552265]
[1771331580920,3.60500961,85.28,85.231,8.52552265]
[1771331581530,10.5595,85.278,85.233,8.52552265]
[1771331582628,10.5602,85.273,85.233,8.52552265]
[1771331585330,73.9,85.289,85.233,8.52552265]
[1771331585331,10.5614,85.263,85.233,8.52552265]
[1771331585537,10.5614,85.263,85.223,8.53620439]
[1771331587231,14.16560961,85.27,85.223,8.53620439]
[1771331587435,14.16560961,85.27,85.21,3.60500961]
[1771331587436,14.16560961,85.27,85.226,8.54439105]
[1771331587738,10.5606,85.27,85.226,8.54439105]
[1771331588736,14.16560961,85.27,85.226,8.54439105]
[1771331589333,14.16560961,85.27,85.228,8.53137842]
[1771331590232,14.16560961,85.27,85.23,10.5654]
[1771331590636,14.16560961,85.27,85.23,19.37802083]
[1771331592434,88.06560961,85.27,85.23,19.37802083]
[1771331593038,88.06560961,85.27,85.233,10.565]
[1771331595245,88.06560961,85.27,85.231,8.80903897]
[1771331595441,10.5612,85.265,85.231,8.80903897]
[1771331596843,73.9,85.269,85.233,8.76820398]
[1771331597547,10.5607,85.268,85.234,8.76820398]
[1771331598642,10.5614,85.263,85.234,8.76820398]
[1771331606245,10.5614,85.263,85.19,73.9]
[1771331606246,3.60331572,85.25,85.191,8.7819491]
[1771331606446,3.60331572,85.24,85.191,8.7819491]
[1771331607743,10.5645,85.238,85.201,8.77843966]
[1771331613563,3.60331572,85.23,85.201,8.77843966]
[1771331614757,10.5657,85.228,85.19,8.37004719]
[1771331615061,3.60331572,85.22,85.19,8.37004719]
[1771331615661,10.5669,85.219,85.179,10.5717]
[1771331615963,3.60331572,85.21,85.178,8.36242312]
[1771331618063,3.60331572,85.21,85.167,18.93006303]
[1771331618261,10.5678,85.211,85.167,18.93006303]
[1771331618262,3.60331572,85.2,85.167,18.93006303]
[1771331618760,3.60331572,85.19,85.156,8.3569824]
[1771331619063,3.60331572,85.18,85.156,8.3569824]
[1771331620862,3.60331572,85.18,85.123,8.37175107]
[1771331621060,3.60331572,85.17,85.123,8.37175107]
[1771331621257,3.60331572,85.18,85.141,8.37175107]
[1771331622759,10.5708,85.187,85.112,2.04321278]
[1771331622760,73.9,85.206,85.151,8.35670851]
[1771331622967,3.60331572,85.21,85.151,8.35670851]
[1771331623661,3.60331572,85.21,85.165,8.39123351]
[1771331624867,73.9,85.217,85.175,8.39123351]
[1771331624868,10.5671,85.217,85.175,8.39123351]
[1771331625266,10.5679,85.21,85.175,8.39123351]
[1771331625567,3.60331572,85.22,85.175,8.39123351]
[1771331626659,10.567,85.217,85.176,8.39179579]
[1771331627271,10.567,85.217,85.133,35.2]
[1771331627272,10.5651,85.233,85.187,8.39179579]
[1771331627571,3.60331572,85.23,85.187,8.39179579]
[1771331628272,10.5656,85.229,85.188,8.40881999]
[1771331629266,3.60331572,85.23,85.19,10.5703]
[1771331629671,21.1231,85.262,85.188,8.40881999]
[1771331629672,3.60331572,85.22,85.188,8.40881999]
[1771331631072,3.60331572,85.22,85.18,10.5715]
[1771331631473,3.60331572,85.22,85.181,8.42229243]
[1771331631872,3.60331572,85.21,85.181,8.42229243]
[1771331632274,3.60331572,85.22,85.181,8.42229243]
[1771331633674,3.60331572,85.22,85.181,18.99369243]
[1771331634576,3.60331572,85.22,85.182,8.40198016]
[1771331638777,10.5676,85.213,85.182,8.40198016]
[1771331638978,3.60331572,85.22,85.182,8.40198016]
[1771331639872,10.5675,85.214,85.182,8.40198016]
[1771331640985,10.5685,85.206,85.168,8.42047604]
[1771331641878,3.60331572,85.21,85.176,8.41579303]
[1771331642184,73.9,85.219,85.176,8.41579303]
[1771331642882,10.5681,85.209,85.176,8.41579303]
[1771331643478,73.9,85.219,85.176,8.41579303]
[1771331644282,10.5669,85.218,85.18,8.41101912]
[1771331645989,10.5669,85.218,85.182,8.38493381]
[1771331646998,73.9,85.219,85.182,8.38493381]
[1771331646999,10.5677,85.212,85.182,8.38493381]
[1771331648298,73.9,85.219,85.16,8.40111458]
[1771331648299,3.60331572,85.2,85.16,8.40111458]
[1771331649001,3.60331572,85.2,85.162,18.97499277]
[1771331649388,3.60331572,85.2,85.162,8.40119277]